Cogmind - Beta 12 @@@ ROGUE MODE // 2023.03.24 @ 00:04:53 Player: kawyua Result: Escaped! Performance ------------- Evolutions (9) 4500 Regions Visited (30) 6000 Robots Destroyed (144) 720 Value Destroyed (8719) 8719 Prototype IDs (35) 700 Alien Tech Used (0) 0 Bonus (11295) 11295 TOTAL SCORE: 31934 Bonus ------- High Alert Combat Kills 912 Follower Combat Kills 3210 Entered Garrisons 1200 Used RIF Installer 2500 Entered DSFs 500 Aligned with FarCom 300 Win 3000 Friendly Fire -327 Cogmind --------- Core Integrity 902/1600 Matter 300/300 Energy 166/170 System Corruption 0% Temperature Cool (8) Movement Flying (31) Location To Epsilon Eridani Parts ------- > --- POWER (2) -------- Light Antimatter Reactor > --- PROPULSION (6) --- Xenon Bombardment Thruster Xenon Bombardment Thruster Xenon Bombardment Thruster Xenon Bombardment Thruster > --- UTILITY (13) ----- Advanced Reaction Control System Improved Hacking Suite Relay Coupler [NC] (19) Relay Coupler [Specialist] (27) > --- WEAPON (4) ------- Enhanced Force Lance > --- INVENTORY (5) ---- Light Antimatter Reactor Xenon Bombardment Thruster Micro-nuke Launcher Advanced Remote Datajack Peak State ------------ > --- POWER ------------ Light Antimatter Reactor > --- PROPULSION ------- Heavy Treads Armored Heavy Treads > --- UTILITY ---------- High-capacity Storage Unit Improved Signal Interpreter Improved Medium Armor Plating Army-in-a-Box > --- WEAPON ----------- Hypervelocity Gauss Rifle Mass Driver Mass Driver > --- INVENTORY -------- Light Angular Momentum Engine Nuclear Pulse Array Advanced Heat Sink Advanced Weight Redist. System Weapon Mount Advanced Transmission Jammer Hardened Heavy Armor Plating Hacking Suite Hacking Suite Hacking Suite Hacking Suite Hacking Suite Authchip [Device] Relay Coupler [NC] Relay Coupler [Behemoth] Heavy Plasma Cannon Heavy Mass Driver [Rating: 122] Favorites ----------- Power Nuclear Core Engine Ion Engine Power Core Nuclear Core Reactor Light Antimatter Reactor Propulsion Light Treads Treads Light Treads Leg Aluminum Leg Wheel Wheel Hover Unit Improved Linear Gravjet Flight Unit Xenon Bombardment Thruster Utility Hacking Suite Device Advanced Transmission Jammer Storage High-capacity Storage Unit Processor Improved Signal Interpreter Hackware Hacking Suite Protection Improved Medium Armor Plating Weapon Autogun Energy Gun Small Laser Energy Cannon Heavy Plasma Cannon Ballistic Gun Autogun Ballistic Cannon Mass Driver Launcher Grenade Launcher Special Weapon Plasma Cutter Impact Weapon Powered Hammer Slashing Weapon Axe Piercing Weapon Enhanced Force Lance Special Melee Weapon Datajack Build | -11 -10 -10 -9 -9 -9 -8 -8 -7 -7 -7 -7 -7 -7 -6 -6 -5 -5 -5 -5 -4 -4 -4 -3 -3 -3 -2 -2 -1 -1 -1 ------- Run | Jun Mat Min Mat Min Exi Min Mat Fac Was Fac Gar Fac Gar Fac DSF Fac Upp Upp War Pro Fac Gar Res Gar Res Res Gar Acc Gar Acc Slots Evolved 18 | . . . 2 . . . 2 2 . . . . . 2 . 2 . . . . 2 . 2 . . 2 . 2 . . Power 1 | . . . . . . . . . . . . . . . . . . . . . . . . . . . . 1 . . Propulsion 4 | . . . 1 . . . . . . . . . . 1 . . . . . . . . . . . 1 . 1 . . Utility 11 | . . . 1 . . . 2 2 . . . . . . . 2 . . . . 2 . 2 . . . . . . . Weapon 2 | . . . . . . . . . . . . . . 1 . . . . . . . . . . . 1 . . . . Parts Attached 288 | 6 8 4 39 7 6 3 37 5 6 . 15 6 15 1 5 16 . 1 . 10 7 15 17 12 19 1 1 1 17 8 Power 25 | 1 . . 5 . . . 4 1 1 . . . 1 . . 1 . . . . 1 2 2 1 2 . . . 3 . Engine 3 | 1 . . 2 . . . . . . . . . . . . . . . . . . . . . . . . . . . Core 13 | . . . 3 . . . 4 1 1 . . . . . . 1 . . . . . 2 . . 1 . . . . . Reactor 9 | . . . . . . . . . . . . . 1 . . . . . . . 1 . 2 1 1 . . . 3 . Propulsion 70 | 2 4 . 11 3 3 1 11 . 1 . 1 . 3 1 . . . . . 2 1 4 . 4 6 1 1 . 8 2 Treads 29 | . 2 . 3 2 . . 8 . 1 . 1 . 3 1 . . . . . 2 1 4 . . 1 . . . . . Leg 7 | 2 . . . . . 1 . . . . . . . . . . . . . . . . . 4 . . . . . . Wheel 15 | . 2 . 8 1 2 . 2 . . . . . . . . . . . . . . . . . . . . . . . Hover 2 | . . . . . . . . . . . . . . . . . . . . . . . . . 2 . . . . . Flight 17 | . . . . . 1 . 1 . . . . . . . . . . . . . . . . . 3 1 1 . 8 2 Utility 105 | 1 3 3 7 1 3 1 11 3 1 . 9 3 9 . 2 12 . 1 . 2 4 7 6 4 6 . . . 2 4 Device 47 | . 1 2 2 1 2 1 3 1 1 . 6 1 6 . . 4 . 1 . 1 1 2 3 1 5 . . . 1 1 Storage 13 | 1 1 . 1 . 1 . 4 . . . . . . . . . . . . . . 1 2 . . . . . . 2 Processor 14 | . 1 1 3 . . . 2 . . . 1 1 . . . . . . . . 2 1 1 1 . . . . . . Hackware 19 | . . . . . . . . . . . 2 . 1 . 2 6 . . . . 1 3 . 1 1 . . . 1 1 Protection 12 | . . . 1 . . . 2 2 . . . 1 2 . . 2 . . . 1 . . . 1 . . . . . . Artifact . | . . . . . . . . . . . . . . . . . . . . . . . . . . . . . . . Weapon 88 | 2 1 1 16 3 . 1 11 1 3 . 5 3 2 . 3 3 . . . 6 1 2 9 3 5 . . 1 4 2 Energy Gun 8 | 1 . . 4 . . . 1 . . . . . . . . . . . . 1 . . . 1 . . . . . . Energy Cannon 3 | . . . . . . . . . . . . . . . . 1 . . . . . . 1 . 1 . . . . . Ballistic Gun 42 | 1 1 . 8 2 . . 9 . 3 . 2 2 1 . 2 . . . . 1 . . 5 1 2 . . . 2 . Ballistic Cannon 10 | . . . 1 . . 1 . . . . 2 1 1 . 1 . . . . 3 . . . . . . . . . . Launcher 4 | . . 1 . 1 . . . . . . . . . . . . . . . 1 . . . . . . . . . 1 Special Weapon 9 | . . . 2 . . . . . . . . . . . . . . . . . 1 1 3 . 1 . . . 1 . Impact Weapon 2 | . . . . . . . 1 . . . . . . . . . . . . . . . . 1 . . . . . . Slashing Weapon 1 | . . . 1 . . . . . . . . . . . . . . . . . . . . . . . . . . . Piercing Weapon 7 | . . . . . . . . . . . . . . . . 2 . . . . . 1 . . 1 . . 1 1 1 Special Melee Weapon 2 | . . . . . . . . 1 . . 1 . . . . . . . . . . . . . . . . . . . Unidentified Prototypes 10 | . . . 2 . 1 . 1 . . . 1 . . . . . . . . 1 . 1 1 . 1 1 . . . . Parts Lost 94 | . 1 . 4 5 . 1 13 . . . 1 . 5 . 1 4 . 1 . 5 1 2 2 19 16 2 4 . 2 5 Power 7 | . . . . . . . 1 . . . . . . . . 1 . . . 1 . 1 . 1 1 . . . 1 . Propulsion 33 | . . . 3 3 . 1 6 . . . . . . . . . . 1 . . 1 1 . 4 5 1 2 . 1 4 Utility 28 | . . . . . . . 2 . . . . . 3 . . 2 . . . 1 . . . 9 7 1 2 . . 1 Weapon 26 | . 1 . 1 2 . . 4 . . . 1 . 2 . 1 1 . . . 3 . . 2 5 3 . . . . . Highest Loss Streak 16 | . 1 . 2 5 . 1 6 . . . 1 . 2 . 1 1 . 1 . 2 1 1 1 11 16 2 3 . 1 3 To Critical Strikes . | . . . . . . . . . . . . . . . . . . . . . . . . . . . . . . . Average Slot Usage (%) 82 | . 99 100 98 99 97 99 93 96 94 92 90 91 89 . 77 64 82 71 52 45 62 82 86 73 70 19 15 8 26 48 Engine 2 | . 14 14 2 . . . . . . . . . . . . . . . . . . . . . . . . . . . Core 4 | . . . 8 11 11 11 8 7 7 7 7 7 3 . . 1 5 5 5 . . 2 2 . . . . . . . Treads 11 | . 19 28 2 6 11 11 12 23 17 15 15 15 15 . 13 11 11 8 5 6 14 11 9 3 3 . . . . . Wheel 6 | . 7 . 29 25 22 11 8 . . . . . . . . . . . . . . . . . . . . . . . Device 11 | . 4 8 3 8 8 11 14 21 23 30 27 26 27 . 15 3 11 8 5 4 8 11 19 16 25 4 3 . 1 5 Storage 8 | . 14 14 11 11 11 11 12 7 7 7 7 7 7 . 6 5 5 5 5 5 5 6 4 4 3 . . . . . Processor 7 | . 8 5 17 13 11 11 12 7 7 7 8 7 7 . 6 5 5 3 . . 1 9 3 4 3 . . . . . Hackware 5 | . . . . . . . . . . . . 3 1 . 3 13 17 14 11 11 12 21 25 13 10 12 7 4 4 9 Protection 2 | . . . . . . . 1 12 14 7 7 6 6 . 6 2 5 3 . . 5 5 4 3 . . . . . . Energy Gun 1 | . 14 1 1 . . . 3 . . . . . . . . . . . . . 1 . . . . . . . . . Ballistic Gun 7 | . 13 14 12 18 22 11 10 8 12 15 6 7 6 . 6 3 . . . 1 . . 3 5 . . . . . . Ballistic Cannon 2 | . . . . . . 11 1 . . . 7 6 7 . 10 6 . . . 1 5 5 1 . . . . . . . Launcher 1 | . . 12 . 3 . . . . . . . . . . . . . . . . . . . . . . . . . 1 Special Weapon 1 | . . . 6 . . . . . . . . . . . . . . . . . 2 3 2 . 2 . . . . 1 Piercing Weapon 1 | . . . . . . . . . . . . . . . . 2 11 11 11 6 . 1 . . . . . 4 3 3 Naked Turns . | . . . . . . . . . . . . . . . . . . . . . . . . . . . . . . . Heaviest Build 163 | 13 49 50 94 94 96 100 104 71 75 68 77 81 91 91 101 163 105 160 160 160 83 86 84 85 71 1 1 8 28 35 Greatest Support 162 | 20 40 40 40 38 26 10 66 66 101 101 106 106 106 130 130 130 130 130 60 106 106 162 150 150 82 15 9 3 38 38 Greatest Overweight (x) 34 | . 2 1 2 5 3 9 34 1 1 . . . 1 . . 1 . 2 2 2 1 1 . 26 1 . . 2 2 . Average Overweight (x) 1 | . 1 1 1 2 3 9 9 . . . . . . . . . . . 2 1 . . . . . . . 2 . . Largest Inventory Capacity 25 | 8 20 20 25 25 25 25 25 20 20 20 20 20 20 20 20 20 20 20 20 20 20 20 20 20 20 5 5 5 5 5 Average Capacity 20 | 6 19 20 23 25 25 25 24 20 20 20 20 20 20 20 20 20 20 20 20 20 20 20 20 20 19 5 5 5 5 5 Most Carried 25 | 6 18 18 25 25 25 25 25 20 20 20 20 20 20 20 20 20 18 19 13 19 20 20 20 20 20 4 4 3 5 5 Average Carried 18 | 4 12 16 22 23 24 24 24 20 19 20 19 20 19 19 19 17 18 16 13 13 19 19 19 19 19 2 3 2 2 4 Final Capacity 25 | 8 20 20 25 25 25 25 20 20 20 20 20 20 20 20 20 20 20 20 20 20 20 20 20 20 5 5 5 5 5 5 Final Carried 25 | 6 18 16 25 24 24 24 20 20 20 20 20 20 20 19 20 18 18 13 13 19 20 20 20 20 3 4 3 3 5 4 Class Distribution -------------------- 42% | Mutant 19% | Hacker-Mutant 11% | Scavenger-Mutant 6% | Bothacker-Mutant 5% | Skirmisher 3% | Hacker-Tank 3% | Infiltrator-Skirmisher Dominant Class ---------------- Mutant | -10/Materials Mutant | -10/Mines Mutant | -9/Materials Mutant | -9/Mines Mutant | -9/Exiles Scavenger-Mutant | -8/Mines Scavenger-Mutant | -8/Materials Infiltrator-Assassin | -7/Factory Infiltrator-Skirmisher | -7/Waste Infiltrator-Skirmisher | -7/Factory Mutant | -7/Garrison Mutant | -7/Factory Scavenger-Mutant | -7/Garrison Scavenger-Mutant | -6/Factory Skirmisher | -6/DSF Hacker-Mutant | -5/Factory Hacker-Mutant | -5/Upper Caves Hacker-Mutant | -5/Upper Caves Hacker-Mutant | -5/Warlord Hacker-Mutant | -4/Proximity Caves Hacker-Mutant | -4/Factory Hacker-Mutant | -4/Garrison Bothacker-Mutant | -3/Research Bothacker-Mutant | -3/Garrison Bothacker-Mutant | -3/Research Mutant | -2/Research Mutant | -2/Garrison Mutant | -1/Access Mutant | -1/Garrison Scavenger-Sprinter | -1/Access Resources | -11 -10 -10 -9 -9 -9 -8 -8 -7 -7 -7 -7 -7 -7 -6 -6 -5 -5 -5 -5 -4 -4 -4 -3 -3 -3 -2 -2 -1 -1 -1 ----------- Run | Jun Mat Min Mat Min Exi Min Mat Fac Was Fac Gar Fac Gar Fac DSF Fac Upp Upp War Pro Fac Gar Res Gar Res Res Gar Acc Gar Acc Matter Collected 8572 | 249 161 245 714 192 120 267 888 . 116 . 592 . 1274 . 113 762 16 82 . 490 160 453 374 618 35 . . . 497 154 Remotely 46 | . . . . . . . . . . . . . . . . . . . . . . . . . . . . . . 46 Salvage Created 6401 | . 302 . 576 34 . 68 921 . . . 80 . 809 . 170 860 . 70 . 200 69 493 434 635 87 . . . 485 108 Parts 344 | . 16 . 46 6 . 4 68 . . . 2 . 36 . 9 32 . 2 . 6 1 18 35 30 10 . . . 19 4 Haulers Intercepted 1 | . . . . . . . . . . . . . . . . 1 . . . . . . . . . . . . . . Recyclers Shooed 1 | . . . . . . . . . . . . . . . . . . . . 1 . . . . . . . . . . Parts Field Recycled . | . . . . . . . . . . . . . . . . . . . . . . . . . . . . . . . Retrieved Matter . | . . . . . . . . . . . . . . . . . . . . . . . . . . . . . . . Parts Self-Destructed 51 | . . . . . . . . . . . . . . . . . . 12 . 39 . . . . . . . . . . Prevented 11 | . . . . . . . . . . . . . . . . . . 2 . 9 . . . . . . . . . . Kills | -11 -10 -10 -9 -9 -9 -8 -8 -7 -7 -7 -7 -7 -7 -6 -6 -5 -5 -5 -5 -4 -4 -4 -3 -3 -3 -2 -2 -1 -1 -1 ------- Run | Jun Mat Min Mat Min Exi Min Mat Fac Was Fac Gar Fac Gar Fac DSF Fac Upp Upp War Pro Fac Gar Res Gar Res Res Gar Acc Gar Acc Combat Hostiles Destroyed 123 | . 10 . 10 4 . 1 23 . . . 2 . 22 . 6 11 . 1 . 2 2 4 6 11 1 . . . 7 . Melee 10 | . . . . . . . . . . . . . . . . 2 . 1 . . . . . . . . . . 7 . Guns 64 | . 10 . 8 4 . 1 23 . . . . . 7 . 1 2 . . . . . . 4 4 . . . . . . Cannons 43 | . . . 2 . . . . . . . 2 . 15 . 5 6 . . . 2 2 4 1 3 1 . . . . . AOE 1 | . . . . . . . . . . . . . . . . 1 . . . . . . . . . . . . . . Classes Destroyed 19 | . 3 . 3 1 . . 5 . . . . . 3 . . 1 . . . 1 . . 1 . . . . . 1 . Worker 7 | . . . 2 . . 1 2 . . . . . . . . 1 . . . . . . . . 1 . . . . . Builder 1 | . . . . . . . . . . . . . . . . . . . . . . . 1 . . . . . . . Tunneler 1 | . . . . . . . 1 . . . . . . . . . . . . . . . . . . . . . . . Hauler 1 | . . . . . . . . . . . . . . . . 1 . . . . . . . . . . . . . . Recycler 3 | . . . . . . . 1 . . . . . . . . 1 . . . . . . . . . . . . . 1 Operator 2 | . . . 2 . . . . . . . . . . . . . . . . . . . . . . . . . . . Watcher 5 | . 1 . 2 . . . . . . . . . . . . 1 . . . 1 . . . . . . . . . . Swarmer 33 | . 6 . . 3 . . 11 . . . . . 1 . 4 . . . . . 1 . . 3 . . . . 4 . Grunt 35 | . 4 . 4 . . 1 3 . . . 2 . 12 . . 3 . 1 . 2 1 . . 2 . . . . . . Brawler 2 | . . . . . . . . . . . . . 1 . . . . . . . . . . 1 . . . . . . Duelist 1 | . . . . . . . 1 . . . . . . . . . . . . . . . . . . . . . . . Sentry 18 | . . . 6 . . . 4 . . . . . 1 . . 3 . . . . . 1 1 . . . . . 2 . Demolisher 1 | . . . . 1 . . . . . . . . . . . . . . . . . . . . . . . . . . Specialist 3 | . . . . . . . 2 . . . . . . . 1 . . . . . . . . . . . . . . . Hunter 11 | . . . . . . . 2 . . . . . 5 . . . . . . . . . . 4 . . . . . . Programmer 16 | . . . . . . . . . . . . . 1 . . 5 . . . . . 3 5 1 1 . . . . . Heavy 2 | . . . . . . . . . . . . . 1 . 1 . . . . . . . . . . . . . . . Behemoth 1 | . . . . . . . . . . . . . . . . . . . . . . . . . . . . . 1 . Samaritan 1 | . . . . . . . . . . . . . . . . . . . . 1 . . . . . . . . . . Thug 1 | . . . . . . . . . . . . . 1 . . . . . . . . . . . . . . . . . Best Kill Streak 5 | . 3 . 3 3 . 1 5 . . . 1 . 5 . 4 3 . 1 . 2 1 3 2 3 1 . . . 2 1 Combat Bots Only 5 | . 3 . 3 3 . 1 5 . . . 1 . 5 . 4 3 . 1 . 2 1 3 2 3 1 . . . 2 . Max Kills in Single Turn 2 | . 2 . 1 1 . 1 2 . . . 1 . 2 . 1 1 . 1 . 1 1 1 1 1 1 . . . 1 1 Gunslinging . | . . . . . . . . . . . . . . . . . . . . . . . . . . . . . . . Exploded 1 | . . . . . . . . . . . . . . . . 1 . . . . . . . . . . . . . . Melee 1 | . . . . . . . . . . . . . . . . 1 . 1 . . . . . . . . . . 1 . Uniques/NPCs Destroyed 1 | . . 1 . . . . . . . . . . . . . . . . . . . . . . . . . . . . YI-UF0 (-10/Mines) Combat | -11 -10 -10 -9 -9 -9 -8 -8 -7 -7 -7 -7 -7 -7 -6 -6 -5 -5 -5 -5 -4 -4 -4 -3 -3 -3 -2 -2 -1 -1 -1 -------- Run | Jun Mat Min Mat Min Exi Min Mat Fac Was Fac Gar Fac Gar Fac DSF Fac Upp Upp War Pro Fac Gar Res Gar Res Res Gar Acc Gar Acc Damage Taken 19345 | . 436 78 786 677 . 265 1931 . . . 367 . 1800 . 286 1549 . 645 322 1243 414 527 983 2141 2864 423 404 129 699 376 Core 3956 | . 98 39 108 159 . 98 359 . . . 29 . 81 . . 112 . 68 35 157 73 94 22 243 906 331 246 129 426 143 Absorbed by Shields 303 | . . . . . . . 246 . . . . . . . . . . . . . . . . . . . 57 . . . Redirected to Shielding 219 | . . . . . . . . . . . . . . . . . . . . . . 42 14 163 . . . . . . Regen/Repaired (Parts) 552 | . . . . . . . . . 5 . 34 . 513 . . . . . . . . . . . . . . . . . Core Remaining (%) 58 | 100 . 45 . . . 8 34 . . . . . 84 . 100 . . . . 62 . 85 . . 9 . 60 . . 56 Volleys Fired 669 | . 36 . 70 12 . 20 82 . 1 . 49 6 93 . 19 45 . 1 24 22 10 23 45 64 32 . . . 9 6 Largest 3 | . 2 . 2 2 . 2 2 . 2 . 2 2 2 . 3 3 . 1 1 2 1 1 3 3 3 . . . 1 1 Hottest 156 | . 60 . 100 53 . 80 84 . 66 . 110 86 87 . 142 147 . 90 90 98 75 75 148 155 156 . . . 30 49 Shots Fired 1169 | . 66 . 114 23 1 29 157 . 2 . 86 12 179 . 51 75 1 1 27 32 10 26 86 142 34 . . . 9 6 Gun 668 | . 66 . 77 20 1 11 154 . 2 . 39 6 86 . 24 15 . . . 12 . . 43 93 11 . . . 8 . Cannon 446 | . . . 10 . . 18 3 . . . 47 6 93 . 27 60 1 1 27 20 9 26 31 49 18 . . . . . Launcher 6 | . . . . 3 . . . . . . . . . . . . . . . . . . . . . . . . . 3 Special 49 | . . . 27 . . . . . . . . . . . . . . . . . 1 . 12 . 5 . . . 1 3 Kinetic 863 | . 30 . 69 20 1 29 130 . 2 . 86 12 179 . 51 44 . . . 24 9 26 43 89 11 . . . 8 . Thermal 274 | . 36 . 45 . . . 27 . . . . . . . . 31 1 1 27 8 . . 31 49 18 . . . . . Explosive 6 | . . . . 3 . . . . . . . . . . . . . . . . . . . . . . . . . 3 Electromagnetic 4 | . . . . . . . . . . . . . . . . . . . . . . . . 4 . . . . . . Robot Hit Streak 38 | . 13 . 19 6 . 5 24 . 1 . 5 . 30 . 38 9 4 . . 3 6 17 19 26 6 . . . 1 4 Robot Miss Streak 4 | . 2 . 3 1 . 1 3 . 1 . 1 . 2 . 3 3 . 1 . 3 1 1 2 2 4 . . . . . Penetration Max 1 | . . . . . . . . . . . . . . . 1 1 . . . . . . 1 1 1 . . . . . Secondary Targets 5 | . . . 2 2 . . 1 . . . . . . . . . . . . . . . . . . . . . . . Max Gunslinging Chain 1 | . . . 1 1 . . 1 . . . . . . . . . . . . . . . . . . . . . . . Shots Hit Robots 685 | . 48 . 81 16 . 13 109 . 1 . 13 . 109 . 35 50 1 3 . 15 8 25 54 55 19 . . . 26 4 Core Hits 257 | . 20 . 33 7 . 3 44 . . . 4 . 45 . 11 24 . 1 . 6 2 9 17 17 5 . . . 8 1 Critical Kills 9 | . . . 1 . . 1 . . . . . . 1 . . 2 . . . 1 . . 1 1 1 . . . . . Critical Parts Destroyed 7 | . . . . . . 4 1 . . . . . . . . . . . . . . . . 2 . . . . . . Critical Strikes 40 | . . . 2 . . 5 6 . . . . . 5 . . 6 . . . 1 4 2 1 3 1 . . . 3 1 Burn 5 | . . . . . . . 5 . . . . . . . . . . . . . . . . . . . . . . . Meltdown 3 | . . . . . . . . . . . . . . . . . . . . 1 . . 1 1 . . . . . . Destroy 13 | . . . 1 . . 5 1 . . . . . 1 . . 2 . . . . . . . 2 1 . . . . . Blast 12 | . . . . . . . . . . . . . 4 . . 2 . . . . 4 2 . . . . . . . . Sever 1 | . . . 1 . . . . . . . . . . . . . . . . . . . . . . . . . . . Impale 6 | . . . . . . . . . . . . . . . . 2 . . . . . . . . . . . . 3 1 Melee Attacks 132 | . . . . . . . 1 . . . 4 . . . . 15 . 5 . . . 7 . 4 6 . . 1 48 41 Impact 11 | . . . . . . . 1 . . . . . . . . . . . . . . . . 4 6 . . . . . Slashing . | . . . . . . . . . . . . . . . . . . . . . . . . . . . . . . . Piercing 117 | . . . . . . . . . . . . . . . . 15 . 5 . . . 7 . . . . . 1 48 41 Sneak Attacks 5 | . . . . . . . . . . . . . . . . 2 . . . . . . . . . . . . 2 1 Combat Hostiles 2 | . . . . . . . . . . . . . . . . . . . . . . . . . . . . . 2 . Follow-up Attacks 2 | . . . . . . . . . . . . . . . . 1 . 1 . . . . . . . . . . . . Damage Inflicted 18492 | . 585 . 1083 278 . 236 1725 . 24 . 293 . 2744 . 965 2063 . 151 . 565 478 1903 1290 1789 661 . . . 1489 170 Guns 6897 | . 585 . 734 203 . 116 1633 . 24 . 126 . 1181 . 358 69 . . . 70 . . 701 910 187 . . . . . Cannons 7723 | . . . 169 . . 120 19 . . . 167 . 1563 . 607 1087 . . . 495 478 1291 589 664 474 . . . . . Explosions 489 | . . . . 75 . . 73 . . . . . . . . 341 . . . . . . . . . . . . . . Melee 3184 | . . . . . . . . . . . . . . . . 547 . 151 . . . 612 . 215 . . . . 1489 170 Ramming 23 | . . . 4 . . . . . . . . . . . . 19 . . . . . . . . . . . . . . Kinetic 11263 | . 288 . 673 203 . 236 1280 . 24 . 293 . 2744 . 965 623 . . . 437 478 1291 701 840 187 . . . . . Thermal 3463 | . 297 . 406 . . . 372 . . . . . . . . 533 . . . 128 . . 589 664 474 . . . . . Explosive 489 | . . . . 75 . . 73 . . . . . . . . 341 . . . . . . . . . . . . . . Electromagnetic 70 | . . . . . . . . . . . . . . . . . . . . . . . . 70 . . . . . . Impact 215 | . . . . . . . . . . . . . . . . . . . . . . . . 215 . . . . . . Slashing . | . . . . . . . . . . . . . . . . . . . . . . . . . . . . . . . Piercing 2969 | . . . . . . . . . . . . . . . . 547 . 151 . . . 612 . . . . . . 1489 170 Highest Corruption 43 | . . . 5 5 7 7 . . . . 2 2 2 . . 7 7 7 7 7 . 1 8 37 43 1 1 . . . Average Corruption 7 | . . . 5 5 6 7 . . . . 1 2 2 . . 3 7 7 7 7 . 1 7 22 37 1 1 . . . Corruption Purged . | . . . . . . . . . . . . . . . . . . . . . . . . . . . . . . . Corruption Blocked . | . . . . . . . . . . . . . . . . . . . . . . . . . . . . . . . Effects 540 | . . . 93 21 28 30 . . . . 16 5 25 . . 47 25 32 18 75 . 10 17 41 55 1 1 . . . Message Errors 121 | . . . 18 2 8 12 . . . . 5 . 2 . . 9 7 7 5 16 . 2 3 11 13 1 . . . . Matter Fused 146 | . . . 22 4 5 5 . . . . 5 3 14 . . 14 4 12 4 26 . 2 2 9 15 . . . . . Heat Flow Errors 67 | . . . 15 4 3 5 . . . . 1 . 1 . . 7 4 2 . 10 . 1 1 5 8 . . . . . Energy Discharges 63 | . . . 14 4 3 1 . . . . 2 2 3 . . 9 1 5 2 6 . 1 2 3 5 . . . . . Parts Rejected 1 | . . . 1 . . . . . . . . . . . . . . . . . . . . . . . . . . . Parts Fused 7 | . . . . . . . . . . . . . . . . . . . 2 1 . . . 3 . . 1 . . . Data Loss (minor) 66 | . . . 10 5 8 5 . . . . 1 . 2 . . 4 5 5 1 6 . . 4 4 6 . . . . . Data Loss (major) 23 | . . . 7 . . 1 . . . . 1 . 1 . . . 2 1 1 3 . . 1 4 1 . . . . . Misfires 19 | . . . 3 . 1 . . . . . . . 1 . . 2 1 . 3 3 . 3 2 . . . . . . . Alerts 14 | . . . 1 1 . 1 . . . . 1 . . . . 1 1 . . 4 . 1 1 . 2 . . . . . Misdirections 1 | . . . . . . . . . . . . . . . . . . . . . . . . . 1 . . . . . Weapon Failures 12 | . . . 2 1 . . . . . . . . 1 . . 1 . . . . . . 1 2 4 . . . . . Overload Shots . | . . . . . . . . . . . . . . . . . . . . . . . . . . . . . . . Overflow Damage 744 | . . . . . . . . . . . 1 . 10 . 20 71 . . . 38 73 269 25 83 32 . . . 122 . Projectiles 396 | . . . . . . . . . . . 1 . 10 . 20 13 . . . 38 73 178 25 6 32 . . . . . Explosions 45 | . . . . . . . . . . . . . . . . 45 . . . . . . . . . . . . . . Melee 303 | . . . . . . . . . . . . . . . . 13 . . . . . 91 . 77 . . . . 122 . Knockbacks 30 | . . . 2 . . 2 . . . . 2 . 10 . . 4 . . . . 5 4 . 1 . . . . . . Impact 2 | . . . . . . . . . . . . . . . . 1 . . . . . . . 1 . . . . . . Kinetic 25 | . . . 1 . . 2 . . . . 1 . 10 . . 3 . . . . 5 3 . . . . . . . . Secondary 3 | . . . 1 . . . . . . . 1 . . . . . . . . . . 1 . . . . . . . . Self-Inflicted Damage 44 | . . . 2 . . . . . . . . . . . . . . . . . . 42 . . . . . . . . Shots 1 | . . . . . . . . . . . . . . . . . . . . . . 1 . . . . . . . . Rammed 3 | . . . 1 . . . . . . . . . . . . 2 . . . . . . . . . . . . . . Targets Rammed 3 | . . . 1 . . . . . . . . . . . . 2 . . . . . . . . . . . . . . Kicked . | . . . . . . . . . . . . . . . . . . . . . . . . . . . . . . . Crushed . | . . . . . . . . . . . . . . . . . . . . . . . . . . . . . . . Highest Temperature 442 | . 48 . 279 196 198 251 442 . . . 276 24 236 . 93 276 253 260 208 308 9 88 189 304 239 . . . . 6 Average Temperature 76 | . 22 . 96 61 85 74 119 . . . 24 12 65 . 31 100 106 90 63 91 4 9 67 84 103 . . . . 6 Received Heat Transfer 2771 | . 162 . 366 . . 99 431 . . . 54 . 417 . . 345 . 200 . 148 48 63 72 96 180 . 18 . 63 9 Effects 10 | . . . 2 . . . 4 . . . . . 1 . . 3 . . . . . . . . . . . . . . Shutdowns 1 | . . . . . . . 1 . . . . . . . . . . . . . . . . . . . . . . . Energy Bleed 3 | . . . 2 . . . 1 . . . . . . . . . . . . . . . . . . . . . . . Interference 4 | . . . . . . . . . . . . . 1 . . 3 . . . . . . . . . . . . . . Damage (major) 2 | . . . . . . . 2 . . . . . . . . . . . . . . . . . . . . . . . Siege Activations 1 | . . . . . . . . . . . . . . . . 1 . . . . . . . . . . . . . . Total Turns 18 | . . . . . . . . . . . . . . . . 18 . . . . . . . . . . . . . . Longest Duration 18 | . . . . . . . . . . . . . . . . 18 . . . . . . . . . . . . . . Robots Corrupted . | . . . . . . . . . . . . . . . . . . . . . . . . . . . . . . . Combat Hostiles . | . . . . . . . . . . . . . . . . . . . . . . . . . . . . . . . Parts Fried 3 | . . . . . . . . . . . . . . . . . . . . 1 . 1 . 1 . . . . . . Impact Corruptions 3 | . . . . . . . . . . . . . . . . . . . . . . 1 . 2 . . . . . . Robots Melted 3 | . . . . . . . . . . . . . . . . . . . . 1 . . 1 1 . . . . . . Combat Hostiles 2 | . . . . . . . . . . . . . . . . . . . . . . . 1 1 . . . . . . Parts Melted 14 | . 1 . 1 . . . 1 . . . . . . . . 1 . . . 3 . . 6 1 . . . . . . Heat Transferred 5685 | . 675 . 1161 . . . 1184 . . . . . . . . 800 . . . 200 . . 555 703 407 . . . . . Parts Sabotaged . | . . . . . . . . . . . . . . . . . . . . . . . . . . . . . . . Parts Stolen . | . . . . . . . . . . . . . . . . . . . . . . . . . . . . . . . Parts Stripped . | . . . . . . . . . . . . . . . . . . . . . . . . . . . . . . . Power Chain Reactions . | . . . . . . . . . . . . . . . . . . . . . . . . . . . . . . . Missiles Intercepted . | . . . . . . . . . . . . . . . . . . . . . . . . . . . . . . . Alert | -11 -10 -10 -9 -9 -9 -8 -8 -7 -7 -7 -7 -7 -7 -6 -6 -5 -5 -5 -5 -4 -4 -4 -3 -3 -3 -2 -2 -1 -1 -1 ------- Run | Jun Mat Min Mat Min Exi Min Mat Fac Was Fac Gar Fac Gar Fac DSF Fac Upp Upp War Pro Fac Gar Res Gar Res Res Gar Acc Gar Acc Peak Influence 2401 | . 136 5 176 70 . 44 408 9 41 . 2401 1264 2022 1061 857 504 . . . . 163 413 231 345 179 76 68 64 594 599 Initial 1260 | . . 5 . 4 . . . 9 3 . . 1260 884 1061 742 449 . . . . 25 114 231 119 177 16 53 34 51 344 Average 364 | . 51 . 37 22 . 12 105 9 30 . 1541 1262 1548 1061 802 353 . . . . 129 244 125 213 75 50 54 44 321 460 Maximum Alert Level 5 | . . . . . . . 2 . . . 5 4 5 3 3 2 . . . . . 2 1 1 . . . . 2 2 Low Security (%) 61 | 100 100 100 100 100 . 100 74 100 100 100 3 . . . . 12 . . . . 100 35 65 38 100 100 100 100 30 . Level 1 15 | . . . . . . . 25 . . . 1 . . . . 58 . . . . . 62 34 61 . . . . 44 22 Level 2 5 | . . . . . . . . . . . 4 . . . . 29 . . . . . 2 . . . . . . 24 77 Level 3 3 | . . . . . . . . . . . 14 . 14 100 100 . . . . . . . . . . . . . . . Level 4 6 | . . . . . . . . . . . 22 100 43 . . . . . . . . . . . . . . . . . Level 5 7 | . . . . . . . . . . . 53 . 42 . . . . . . . . . . . . . . . . . High Security . | . . . . . . . . . . . . . . . . . . . . . . . . . . . . . . . Max Security . | . . . . . . . . . . . . . . . . . . . . . . . . . . . . . . . Squads Dispatched 22 | . 2 . 3 . . . 4 . . . . . . . . 5 . 1 . 1 . . 1 . 2 . . 1 . 2 Investigation 3 | . 1 . 1 . . . . . . . . . . . . . . 1 . . . . . . . . . . . . Extermination 6 | . . . . . . . . . . . . . . . . 4 . . . . . . 1 . 1 . . . . . Reinforcement 9 | . 1 . 2 . . . 1 . . . . . . . . 1 . . . 1 . . . . 1 . . 1 . 1 Assault 1 | . . . . . . . . . . . . . . . . . . . . . . . . . . . . . . 1 Garrison 3 | . . . . . . . 3 . . . . . . . . . . . . . . . . . . . . . . . Intercept . | . . . . . . . . . . . . . . . . . . . . . . . . . . . . . . . Searches Triggered . | . . . . . . . . . . . . . . . . . . . . . . . . . . . . . . . Construction Impeded 1 | . . . . . . . . . . . . . . . . . . . . 1 . . . . . . . . . . Haulers Reinforced 1 | . . . . . . . . . . . . . . . . 1 . . . . . . . . . . . . . . Active Scanning Responses . | . . . . . . . . . . . . . . . . . . . . . . . . . . . . . . . Cargo Convoy Interrupts 1 | . . . . . . . . . . . . . . . . 1 . . . . . . . . . . . . . . Stealth | -11 -10 -10 -9 -9 -9 -8 -8 -7 -7 -7 -7 -7 -7 -6 -6 -5 -5 -5 -5 -4 -4 -4 -3 -3 -3 -2 -2 -1 -1 -1 --------- Run | Jun Mat Min Mat Min Exi Min Mat Fac Was Fac Gar Fac Gar Fac DSF Fac Upp Upp War Pro Fac Gar Res Gar Res Res Gar Acc Gar Acc Distress Signals 13 | . . . 7 . . . 2 . . . . . . . . . . . . . 1 . . . 2 1 . . . . Communications Jammed 13 | . . . . . . . . . . . . . . . 12 . . . . . . . 1 . . . . . . . Distress Signals 1 | . . . . . . . . . . . . . . . . . . . . . . . 1 . . . . . . . Times Spotted 311 | . 22 1 40 6 . 3 36 . 2 . 20 . 29 . 7 20 . 8 . 21 6 4 7 14 17 10 9 2 19 8 Peak Tracking Total 13 | . 4 . 6 3 . 3 7 . 1 . 3 . 4 . 4 4 . 7 . 4 5 3 2 4 13 10 9 2 6 4 Tactical Retreats 26 | . 2 . . . . 1 2 . . . . . . . . 5 . . . 1 . . . 1 . 3 1 . 3 7 Traps | -11 -10 -10 -9 -9 -9 -8 -8 -7 -7 -7 -7 -7 -7 -6 -6 -5 -5 -5 -5 -4 -4 -4 -3 -3 -3 -2 -2 -1 -1 -1 ------- Run | Jun Mat Min Mat Min Exi Min Mat Fac Was Fac Gar Fac Gar Fac DSF Fac Upp Upp War Pro Fac Gar Res Gar Res Res Gar Acc Gar Acc Traps Triggered 12 | . 1 . 1 . . . . 1 . . 2 1 1 . . 1 . . . . . 1 . . 1 1 1 . . . Indirectly . | . . . . . . . . . . . . . . . . . . . . . . . . . . . . . . . Trap Hack Attempts . | . . . . . . . . . . . . . . . . . . . . . . . . . . . . . . . Triggered . | . . . . . . . . . . . . . . . . . . . . . . . . . . . . . . . Disarmed . | . . . . . . . . . . . . . . . . . . . . . . . . . . . . . . . Reprogrammed . | . . . . . . . . . . . . . . . . . . . . . . . . . . . . . . . Reused . | . . . . . . . . . . . . . . . . . . . . . . . . . . . . . . . Traps Extracted . | . . . . . . . . . . . . . . . . . . . . . . . . . . . . . . . Installed . | . . . . . . . . . . . . . . . . . . . . . . . . . . . . . . . Triggered 2 | . . . . . . . . . . . . . . . . 2 . . . . . . . . . . . . . . Machines | -11 -10 -10 -9 -9 -9 -8 -8 -7 -7 -7 -7 -7 -7 -6 -6 -5 -5 -5 -5 -4 -4 -4 -3 -3 -3 -2 -2 -1 -1 -1 ---------- Run | Jun Mat Min Mat Min Exi Min Mat Fac Was Fac Gar Fac Gar Fac DSF Fac Upp Upp War Pro Fac Gar Res Gar Res Res Gar Acc Gar Acc Machines Disabled 50 | . 1 . 1 . . . 6 . . . 13 . 9 . 1 4 . 1 . 1 . 4 . 4 . . . 1 3 1 Max in Single Turn 3 | . 1 . . . . . 3 . . . 1 . 1 . 1 3 . 1 . 1 . 2 . 1 . . . 1 1 1 Garrison Relay 12 | . . . . . . . . . . . 5 . 4 . . . . . . . . 1 . 1 . . . . 1 . Phase Generator 1 | . . . . . . . . . . . . . . . . . . . . . . 1 . . . . . . . . Machines Repaired . | . . . . . . . . . . . . . . . . . . . . . . . . . . . . . . . Machines Sabotaged . | . . . . . . . . . . . . . . . . . . . . . . . . . . . . . . . Overloaded Fab Kills . | . . . . . . . . . . . . . . . . . . . . . . . . . . . . . . . Hacking | -11 -10 -10 -9 -9 -9 -8 -8 -7 -7 -7 -7 -7 -7 -6 -6 -5 -5 -5 -5 -4 -4 -4 -3 -3 -3 -2 -2 -1 -1 -1 --------- Run | Jun Mat Min Mat Min Exi Min Mat Fac Was Fac Gar Fac Gar Fac DSF Fac Upp Upp War Pro Fac Gar Res Gar Res Res Gar Acc Gar Acc Machines Accessed 52 | . 8 . 10 . 4 . 2 . . 2 4 2 3 1 . 4 . 1 . 2 1 1 1 1 1 1 . 1 2 . Terminals 37 | . 7 . 10 . . . 2 . . 1 4 1 3 1 . 1 . 1 . 1 . 1 . 1 1 . . . 2 . Fabricators 1 | . . . . . . . . . . . . . . . . 1 . . . . . . . . . . . . . . Repair Stations . | . . . . . . . . . . . . . . . . . . . . . . . . . . . . . . . Recycling Units 4 | . 1 . . . . . . . . . . . . . . 2 . . . 1 . . . . . . . . . . Scanalyzers . | . . . . . . . . . . . . . . . . . . . . . . . . . . . . . . . Garrison Access 6 | . . . . . . . . . . 1 . 1 . . . . . . . . 1 . 1 . . 1 . 1 . . Total Hacks 135 | . 23 . 35 . 27 . 6 . . 3 6 3 4 1 . 6 . 4 . 3 1 1 1 3 2 1 . 1 4 . Successful 79 | . 13 . 13 . 27 . 3 . . 1 3 1 1 1 . 4 . 4 . 1 1 1 1 1 . 1 . 1 1 . Failed 56 | . 10 . 22 . . . 3 . . 2 3 2 3 . . 2 . . . 2 . . . 2 2 . . . 3 . Catastrophic 9 | . 1 . 4 . . . . . . . . 1 1 . . . . . . 1 . . . . . . . . 1 . Database Lockouts . | . . . . . . . . . . . . . . . . . . . . . . . . . . . . . . . Manual 51 | . 21 . 21 . 1 . 1 . . 1 . 2 . . . 4 . . . . . . . . . . . . . . Terminals 93 | . 22 . 35 . . . 6 . . 1 6 2 4 1 . 1 . 4 . 1 . 1 . 3 2 . . . 4 . Fabricators 1 | . . . . . . . . . . . . . . . . 1 . . . . . . . . . . . . . . Repair Stations . | . . . . . . . . . . . . . . . . . . . . . . . . . . . . . . . Recycling Units 7 | . 1 . . . . . . . . . . . . . . 4 . . . 2 . . . . . . . . . . Scanalyzers . | . . . . . . . . . . . . . . . . . . . . . . . . . . . . . . . Garrison Access 7 | . . . . . . . . . . 2 . 1 . . . . . . . . 1 . 1 . . 1 . 1 . . Terminal Hacks 58 | . 4 . 10 . 27 . 3 . . . 3 . 1 1 . 1 . 4 . 1 . 1 . 1 . . . . 1 . Record 30 | . . . . . 26 . . . . . . . . . . . . 4 . . . . . . . . . . . . Prototype ID Bank 1 | . . . 1 . . . . . . . . . . . . . . . . . . . . . . . . . . . Open Door 2 | . . . . . . . . . . . . . . . . . . . . 1 . . . . . . . . 1 . Open DSF 2 | . . . . . . . . . . . . . . 1 . 1 . . . . . . . . . . . . . . Emergency Access Points 1 | . . . . . . . . . . . 1 . . . . . . . . . . . . . . . . . . . Terminal Index 2 | . 1 . 1 . . . . . . . . . . . . . . . . . . . . . . . . . . . Alert Level 4 | . 1 . 3 . . . . . . . . . . . . . . . . . . . . . . . . . . . Unreport Threat 6 | . 1 . 3 . . . 2 . . . . . . . . . . . . . . . . . . . . . . . Dispatch Records 1 | . . . . . . . 1 . . . . . . . . . . . . . . . . . . . . . . . Patrol Status 1 | . 1 . . . . . . . . . . . . . . . . . . . . . . . . . . . . . Reinforcement Status 1 | . . . 1 . . . . . . . . . . . . . . . . . . . . . . . . . . . Recall Reinforcements 1 | . . . 1 . . . . . . . . . . . . . . . . . . . . . . . . . . . Garrison Registry 2 | . . . . . . . . . . . . . 1 . . . . . . . . . . 1 . . . . . . Patrol Navigation 1 | . . . . . . . . . . . 1 . . . . . . . . . . . . . . . . . . . Security Stations 2 | . . . . . . . . . . . 1 . . . . . . . . . . 1 . . . . . . . . EX-Prototype ID Bank 1 | . . . . . 1 . . . . . . . . . . . . . . . . . . . . . . . . . Fabricator Hacks 1 | . . . . . . . . . . . . . . . . 1 . . . . . . . . . . . . . . Network Status 1 | . . . . . . . . . . . . . . . . 1 . . . . . . . . . . . . . . Repair Station Hacks . | . . . . . . . . . . . . . . . . . . . . . . . . . . . . . . . Recycling Unit Hacks 1 | . 1 . . . . . . . . . . . . . . . . . . . . . . . . . . . . . Report Inventory 1 | . 1 . . . . . . . . . . . . . . . . . . . . . . . . . . . . . Scanalyzer . | . . . . . . . . . . . . . . . . . . . . . . . . . . . . . . . Garrison Access Hacks 6 | . . . . . . . . . . 1 . 1 . . . . . . . . 1 . 1 . . 1 . 1 . . Unlock Access 6 | . . . . . . . . . . 1 . 1 . . . . . . . . 1 . 1 . . 1 . 1 . . Unauthorized Hacks 13 | . 8 . 3 . . . . . . . . . . . . 2 . . . . . . . . . . . . . . Terminals 11 | . 8 . 3 . . . . . . . . . . . . . . . . . . . . . . . . . . . Botnet 9 | . 7 . 2 . . . . . . . . . . . . . . . . . . . . . . . . . . . Operators 2 | . 1 . 1 . . . . . . . . . . . . . . . . . . . . . . . . . . . Fabricators . | . . . . . . . . . . . . . . . . . . . . . . . . . . . . . . . Repair Stations . | . . . . . . . . . . . . . . . . . . . . . . . . . . . . . . . Recycling Units 2 | . . . . . . . . . . . . . . . . 2 . . . . . . . . . . . . . . Reject 1 | . . . . . . . . . . . . . . . . 1 . . . . . . . . . . . . . . Mask 1 | . . . . . . . . . . . . . . . . 1 . . . . . . . . . . . . . . Scanalyzers . | . . . . . . . . . . . . . . . . . . . . . . . . . . . . . . . Garrison Access . | . . . . . . . . . . . . . . . . . . . . . . . . . . . . . . . Data Cores Recovered . | . . . . . . . . . . . . . . . . . . . . . . . . . . . . . . . Used . | . . . . . . . . . . . . . . . . . . . . . . . . . . . . . . . Hacking Detections 40 | . 7 . 10 . . . 2 . . 1 3 2 3 . . 3 . 1 . 1 . . 1 1 1 1 . 1 2 . Full Trace Events 3 | . 1 . . . . . . . . . . . 1 . . . . 1 . . . . . . . . . . . . Feedback Events . | . . . . . . . . . . . . . . . . . . . . . . . . . . . . . . . Feedback Blocked . | . . . . . . . . . . . . . . . . . . . . . . . . . . . . . . . Robot Schematics Acquired . | . . . . . . . . . . . . . . . . . . . . . . . . . . . . . . . Robots Built . | . . . . . . . . . . . . . . . . . . . . . . . . . . . . . . . Authchips . | . . . . . . . . . . . . . . . . . . . . . . . . . . . . . . . Time . | . . . . . . . . . . . . . . . . . . . . . . . . . . . . . . . Total Robot Build Rating . | . . . . . . . . . . . . . . . . . . . . . . . . . . . . . . . Part Schematics Acquired . | . . . . . . . . . . . . . . . . . . . . . . . . . . . . . . . Parts Built . | . . . . . . . . . . . . . . . . . . . . . . . . . . . . . . . Authchips . | . . . . . . . . . . . . . . . . . . . . . . . . . . . . . . . Time . | . . . . . . . . . . . . . . . . . . . . . . . . . . . . . . . Total Part Build Rating . | . . . . . . . . . . . . . . . . . . . . . . . . . . . . . . . Parts Repaired . | . . . . . . . . . . . . . . . . . . . . . . . . . . . . . . . Time . | . . . . . . . . . . . . . . . . . . . . . . . . . . . . . . . Parts Recycled . | . . . . . . . . . . . . . . . . . . . . . . . . . . . . . . . Recycled Matter . | . . . . . . . . . . . . . . . . . . . . . . . . . . . . . . . Retrieved Matter . | . . . . . . . . . . . . . . . . . . . . . . . . . . . . . . . Retrieved Components . | . . . . . . . . . . . . . . . . . . . . . . . . . . . . . . . Parts Scanalyzed . | . . . . . . . . . . . . . . . . . . . . . . . . . . . . . . . Part Schematics Acquired . | . . . . . . . . . . . . . . . . . . . . . . . . . . . . . . . Parts Damaged . | . . . . . . . . . . . . . . . . . . . . . . . . . . . . . . . Bothacking | -11 -10 -10 -9 -9 -9 -8 -8 -7 -7 -7 -7 -7 -7 -6 -6 -5 -5 -5 -5 -4 -4 -4 -3 -3 -3 -2 -2 -1 -1 -1 ------------ Run | Jun Mat Min Mat Min Exi Min Mat Fac Was Fac Gar Fac Gar Fac DSF Fac Upp Upp War Pro Fac Gar Res Gar Res Res Gar Acc Gar Acc Used RIF Installer 5 | . . . . . . . . . . . 1 . 1 . . . . . . . . 2 . 1 . . . . . . Coupler Efficiency 1 | . . . . . . . . . . . . . . . . . . . . . . 1 . . . . . . . . Command Fork 1 | . . . . . . . . . . . . . . . . . . . . . . 1 . . . . . . . . Zone Cloak 1 | . . . . . . . . . . . . . 1 . . . . . . . . . . . . . . . . . Alert ID Control 1 | . . . . . . . . . . . . . . . . . . . . . . . . 1 . . . . . . Robots Hacked 13 | . . . . . . . . . . . . . . . . . . . . . 1 . 6 . 3 . . . 1 2 Non-combat 11 | . . . . . . . . . . . . . . . . . . . . . 1 . 5 . 3 . . . . 2 Combat 2 | . . . . . . . . . . . . . . . . . . . . . . . 1 . . . . . 1 . Robot Hacks Applied 15 | . . . . . . . . . . . . . . . . . . . . . 1 . 8 . 3 . . . 1 2 parse_system 2 | . . . . . . . . . . . . . . . . . . . . . . . 1 . . . . . 1 . no_distress 1 | . . . . . . . . . . . . . . . . . . . . . . . 1 . . . . . . . generate_anomaly 1 | . . . . . . . . . . . . . . . . . . . . . . . . . . . . . . 1 find_chute 1 | . . . . . . . . . . . . . . . . . . . . . 1 . . . . . . . . . ignore_repairs 1 | . . . . . . . . . . . . . . . . . . . . . . . 1 . . . . . . . map_walls 4 | . . . . . . . . . . . . . . . . . . . . . . . 2 . 2 . . . . . map_earth 2 | . . . . . . . . . . . . . . . . . . . . . . . 2 . . . . . . . locate_stockpiles 1 | . . . . . . . . . . . . . . . . . . . . . . . . . . . . . . 1 find_station 1 | . . . . . . . . . . . . . . . . . . . . . . . . . 1 . . . . . relay_feed 1 | . . . . . . . . . . . . . . . . . . . . . . . 1 . . . . . . . Relay Couplers Released 50 | . . . . . . . . . . . 22 . 18 . . . . . . . . 4 . 3 . . . . 3 . Machine Destruction 47 | . . . . . . . . . . . 22 . 15 . . . . . . . . 4 . 3 . . . . 3 . Programmers 3 | . . . . . . . . . . . . . 3 . . . . . . . . . . . . . . . . . Attached 9 | . . . . . . . . . . . 2 . 1 . . 1 . . . . . 3 . 1 . . . . 1 . Fabnet Peak Effective % . | . . . . . . . . . . . . . . . . . . . . . . . . . . . . . . . Robots Rewired 22 | . . . . . . . . . . . . . 6 . . . . . . 11 . . . . . . . . 5 . Allies Hacked 1 | . . . . . . . . . . . 1 . . . . . . . . . . . . . . . . . . . Hacks Repelled . | . . . . . . . . . . . . . . . . . . . . . . . . . . . . . . . Allies | -11 -10 -10 -9 -9 -9 -8 -8 -7 -7 -7 -7 -7 -7 -6 -6 -5 -5 -5 -5 -4 -4 -4 -3 -3 -3 -2 -2 -1 -1 -1 -------- Run | Jun Mat Min Mat Min Exi Min Mat Fac Was Fac Gar Fac Gar Fac DSF Fac Upp Upp War Pro Fac Gar Res Gar Res Res Gar Acc Gar Acc Total Allies 48 | . . 2 . 1 . . . . 19 . . . 10 . . . . . . 11 . . . . . . . . 5 . Largest Group 19 | . . 2 2 1 . . . . 19 15 15 9 9 3 3 . . . . 6 4 1 . . . . . . 3 . Highest-Rated Group 465 | . . 32 32 31 . . . . 465 409 409 264 255 174 174 . . . . 232 172 56 . . . . . . 232 . Highest-Rated Ally 116 | . . 16 16 31 . . . . 35 35 35 35 95 95 95 . . . . 56 56 56 . . . . . . 116 . Total Orders 12 | . . . . . . . . . . . . . . . . 1 . 1 . 10 . . . . . . . . . . ROAM 1 | . . . . . . . . . . . . . . . . . . . . 1 . . . . . . . . . . FOLLOW 1 | . . . . . . . . . . . . . . . . . . . . 1 . . . . . . . . . . EXPLORE 4 | . . . . . . . . . . . . . . . . . . . . 4 . . . . . . . . . . RETURN 6 | . . . . . . . . . . . . . . . . 1 . 1 . 4 . . . . . . . . . . Ally Attacks 785 | . . 3 28 7 . . . . 101 . 161 . 63 . 15 7 . 39 . 315 14 1 . . . . . . 31 . Total Damage 20128 | . . 45 142 105 . . . . 3338 . 4581 . 1570 . 458 106 . 876 . 6408 543 87 . . . . . . 1869 . Kills 122 | . . 1 1 1 . . . . 9 . 38 . 14 . . 2 . 11 . 32 5 . . . . . . . 8 . Allies Corrupted 1 | . . . . . . . . . . . . . 1 . . . . . . . . . . . . . . . . . Allies Melted 1 | . . . . . . . . . . . . . 1 . . . . . . . . . . . . . . . . . Intel | -11 -10 -10 -9 -9 -9 -8 -8 -7 -7 -7 -7 -7 -7 -6 -6 -5 -5 -5 -5 -4 -4 -4 -3 -3 -3 -2 -2 -1 -1 -1 ------- Run | Jun Mat Min Mat Min Exi Min Mat Fac Was Fac Gar Fac Gar Fac DSF Fac Upp Upp War Pro Fac Gar Res Gar Res Res Gar Acc Gar Acc Robot Analysis Total . | . . . . . . . . . . . . . . . . . . . . . . . . . . . . . . . Derelict Logs Recovered 4 | . . . . 1 . . . . . . . . . . . . 1 . . 2 . . . . . . . . . . Drone Launches 129 | . . . . . . . . . . . . . . . . 30 . 28 . 71 . . . . . . . . . . Drone Recoveries 99 | . . . . . . . . . . . . . . . . 30 . 23 . 46 . . . . . . . . . . Exploration | -11 -10 -10 -9 -9 -9 -8 -8 -7 -7 -7 -7 -7 -7 -6 -6 -5 -5 -5 -5 -4 -4 -4 -3 -3 -3 -2 -2 -1 -1 -1 ------------- Run | Jun Mat Min Mat Min Exi Min Mat Fac Was Fac Gar Fac Gar Fac DSF Fac Upp Upp War Pro Fac Gar Res Gar Res Res Gar Acc Gar Acc Turns Passed 33839 | 73 1866 2947 4273 651 1129 1113 2449 104 405 154 2282 376 2070 6 269 2606 733 897 547 2743 295 1226 1176 844 960 96 65 208 785 491 Spaces Moved 16800 | 52 964 988 2029 435 820 337 915 64 239 96 1308 210 1008 3 115 1185 443 430 143 905 125 479 557 351 460 237 112 136 452 1202 Core 199 | 7 . . . . . . 1 . . . . . . . . . . . . . . . . 2 2 9 30 136 12 . Treads 9345 | . 484 988 78 . . . 39 64 239 96 1308 210 1008 3 115 1185 443 430 143 905 125 479 557 112 334 . . . . . Legs 375 | 45 28 . . . . . . . . . . . . . . . . . . . . . . 237 65 . . . . . Wheels 4867 | . 452 . 1951 435 820 337 872 . . . . . . . . . . . . . . . . . . . . . . . Hover . | . . . . . . . . . . . . . . . . . . . . . . . . . . . . . . . Flight 2014 | . . . . . . . 3 . . . . . . . . . . . . . . . . . 59 228 82 . 440 1202 Fastest Speed 25 | 50 110 240 98 120 135 215 145 145 145 152 152 165 165 165 165 160 165 165 330 163 160 160 160 120 39 32 32 150 25 25 Average Speed 159 | 110 175 240 115 130 135 215 226 147 154 152 158 165 168 165 165 182 165 202 330 273 204 200 160 147 168 38 41 150 33 26 Slowest Speed 1750 | 120 260 240 240 175 135 215 1750 225 225 152 165 165 250 165 165 245 165 330 330 330 240 240 160 1350 270 50 50 150 150 31 Overloaded Moves 50 | . . . . . . . . . . . . . . . . . . . . . . . . . . 44 6 . . . Propulsion Burnouts . | . . . . . . . . . . . . . . . . . . . . . . . . . . . . . . . Robots Hopped 30 | . . . . . . . . . . . . 1 . . . . . . . . . . . . 7 . 6 . 13 3 Cave-ins Triggered 2 | . . . . . . . . . . . . . . . . . . . 1 . . . . 1 . . . . . . Exploration Rate (%) 45 | 3 97 97 88 78 90 43 65 2 80 3 96 5 88 . 91 13 52 64 17 92 3 45 13 35 12 10 23 3 33 16 Regions Visited 30 Branch Regions 8 Pre-discovered Areas 1 | . . 1 . . . . . . . . . . . . . . . . . . . . . . . . . . . . Known Exits Taken 17 | . . 1 1 1 1 1 1 . . 1 . 1 . 1 . 1 1 1 . 1 1 . 1 . . 1 . 1 . . Unknown Exits Taken 4 | 1 1 . . . . . . . . . . . . . . . . . 1 . . . . . 1 . . . . . Scrap Searched 5 | . . . . 1 . . . . . . . . . . . . 1 2 . 1 . . . . . . . . . . Spaces Dug 209 | . . . 1 . . 12 1 . . . 2 4 1 . 2 14 . 1 22 . . 3 10 38 5 . . . 21 72 Terrain Destroyed 382 | . . . 1 10 . 17 14 . 1 . 2 4 4 . 9 43 1 2 25 4 3 79 16 44 10 . . . 21 72 Melee 54 | . . . . . . . 1 . . . . . . . . 4 . 1 . . . . . . 4 . . . 14 30 Projectile 176 | . . . 1 . . 17 . . 1 . 2 4 4 . 9 25 1 1 25 4 3 7 16 43 6 . . . 7 . AOE 151 | . . . . 10 . . 13 . . . . . . . . 14 . . . . . 72 . . . . . . . 42 Terrain Rammed . | . . . . . . . . . . . . . . . . . . . . . . . . . . . . . . . Walls Destroyed . | . . . . . . . . . . . . . . . . . . . . . . . . . . . . . . . Machines Disabled . | . . . . . . . . . . . . . . . . . . . . . . . . . . . . . . . Actions | -11 -10 -10 -9 -9 -9 -8 -8 -7 -7 -7 -7 -7 -7 -6 -6 -5 -5 -5 -5 -4 -4 -4 -3 -3 -3 -2 -2 -1 -1 -1 --------- Run | Jun Mat Min Mat Min Exi Min Mat Fac Was Fac Gar Fac Gar Fac DSF Fac Upp Upp War Pro Fac Gar Res Gar Res Res Gar Acc Gar Acc Total 22504 | 65 1069 1563 3826 497 847 699 1160 73 279 104 1433 226 1212 5 158 1540 445 453 196 1144 149 696 783 546 588 240 124 138 964 1282 Wait 4010 | . 44 572 1602 39 . 337 62 3 11 9 31 . 28 . 4 245 3 12 30 120 2 158 147 112 67 . 13 . 337 22 Move 16717 | 51 963 987 2028 434 819 336 914 64 238 95 1307 208 1006 2 114 1184 442 429 141 904 125 478 556 349 445 237 100 135 430 1196 Hop 22 | . . . . . . . . . . . . 1 . . . . . . . . . . . . 7 . 5 . 7 2 Pick Up 238 | 8 16 . 47 5 8 2 35 . 8 . 11 . 12 1 9 19 . 1 . 15 4 3 8 3 2 2 . 1 16 2 Fast Attach 86 | 4 . . 2 . 1 . 8 3 2 . 6 6 5 . 1 1 . . . . 4 11 4 9 14 . . . 1 4 Attach 120 | 2 3 . 11 5 2 1 17 . 1 . 6 . 9 1 3 14 . 1 . 9 3 1 5 3 4 1 1 1 13 3 Detach 5 | . . . . . . . . . . . . . . . . . . . . 2 . . 1 . . . . . 1 1 Swap 82 | . 5 4 26 2 3 2 12 2 3 . 3 . 1 . 1 1 . . . 1 . 3 8 . 1 . . . 3 1 Drop 206 | . 2 . 39 . 14 1 29 1 15 . 16 5 12 1 7 16 . 5 . 2 1 12 9 1 10 . . . 4 4 Fire 669 | . 36 . 70 12 . 20 82 . 1 . 49 6 93 . 19 45 . 1 24 22 10 23 45 64 32 . . . 9 6 Melee 129 | . . . . . . . 1 . . . 4 . . . . 13 . 4 . . . 7 . 4 6 . . 1 48 41 Ram 1 | . . . 1 . . . . . . . . . . . . . . . . . . . . . . . . . . . Kick . | . . . . . . . . . . . . . . . . . . . . . . . . . . . . . . . Crush 2 | . . . . . . . . . . . . . . . . 2 . . . . . . . . . . . . . . Escape Stasis 7 | . . . . . . . . . . . . . . . . . . . 1 . . . . 1 . . 5 . . . Rewire 210 | . . . . . . . . . . . . . 46 . . . . . . 69 . . . . . . . . 95 . Trap . | . . . . . . . . . . . . . . . . . . . . . . . . . . . . . . . Miscellaneous . | . . . . . . . . . . . . . . . . . . . . . . . . . . . . . . . Route ------- -11/Junkyard -10/Materials (discovered 4 exits: *Mat x3 / [*Min]) -10/Mines (discovered 2 exits: *Mat x2) -9/Materials (discovered 3 exits: *Mat / *Min / [*Sto]) -9/Mines (discovered 3 exits: *Mat / *Exi / [*Zio]) -9/Exiles (discovered 2 exits: *Min x2) -8/Mines -8/Materials (discovered 2 exits: *Fac x2) -7/Factory -7/Waste -7/Factory -7/Garrison (discovered 3 exits: *Fac x3) -7/Factory -7/Garrison (discovered 3 exits: *Fac x3) -6/Factory -6/DSF -5/Factory -5/Upper Caves -5/Upper Caves (discovered 2 exits: Fac / *War) -5/Warlord -4/Proximity Caves -4/Factory -4/Garrison -3/Research -3/Garrison (discovered 3 exits: *Res x3) -3/Research -2/Research -2/Garrison -1/Access -1/Garrison -1/Access To Epsilon Eridani History --------- Turn | Location | Event 17 | -11/Junkyard | Discovered new exit (range 15) 74 | -11/Junkyard | Entered Materials 193 | -10/Materials | Discovered new exit (range 16) 307 | -10/Materials | Build established: Mutant 449 | -10/Materials | Discovered new exit (range 12) 506 | -10/Materials | Discovered new exit (range 13) 599 | -10/Materials | Discovered new exit (range 15) 1940 | -10/Materials | Entered Mines 1941 | -10/Mines | Learned location of Storage (-9) 2216 | -10/Mines | Discovered new exit (range 9) 2709 | -10/Mines | Assisted by bots powering up and referring to "LRC-V3" 2769 | -10/Mines | Core integrity fell below 50% 2769 | -10/Mines | Allies destroyed YI-UF0 2783 | -10/Mines | Discovered new exit (range 10) 2821 | -10/Mines | Identified exit to Materials 4887 | -10/Mines | Entered Materials 4887 | -9/Materials | Accompanied by 2 allies 4887 | -9/Materials | Evolved 2 slots: Propulsion x1, Utility x1 5215 | -9/Materials | Discovered new exit (range 12) 5783 | -9/Materials | Discovered new exit (range 3) 6332 | -9/Materials | Identified exit to Materials 8919 | -9/Materials | Discovered new exit (range 13) 9159 | -9/Materials | Identified exit to Mines 9160 | -9/Materials | Entered Mines 9164 | -9/Mines | Assembled infested the area 9169 | -9/Mines | Assisted by a Guerilla fighting off Assembled 9401 | -9/Mines | Core integrity fell below 50% 9440 | -9/Mines | Lost 5 parts (3n2w) 9447 | -9/Mines | Received a Mining Laser from a helpful Derelict 9486 | -9/Mines | Received a Rocket Launcher from a helpful Derelict 9515 | -9/Mines | A Derelict revealed a hidden shortcut to a safe place 9651 | -9/Mines | Discovered exit to Materials (range 5) 9722 | -9/Mines | Identified exit to Exiles 9805 | -9/Mines | Deemed a non-threat by the Exiles lab entrance 9811 | -9/Mines | Entered Exiles 9838 | -9/Exiles | Discovered new exit (range 14) 9855 | -9/Exiles | Identified exit to Mines 9890 | -9/Exiles | Met 8R-AWN 9919 | -9/Exiles | Met EX-HEX 9959 | -9/Exiles | Met EX-BIN 9988 | -9/Exiles | Aligned with FarCom system 9990 | -9/Exiles | Given EX-Vault access code 10081 | -9/Exiles | Opened EX-Vault 10152 | -9/Exiles | Found Army-in-a-Box 10182 | -9/Exiles | Warned to stay clear of 0b10 Research branches 10220 | -9/Exiles | Met EX-DEC 10335 | -9/Exiles | Discovered exit to Mines (range 14) 10440 | -9/Exiles | Visited The Gauntlet 10940 | -9/Exiles | Left Exiles lab with Army-in-a-Box 10940 | -9/Exiles | Entered Mines 10950 | -8/Mines | Core integrity fell below 20% 11241 | -8/Mines | Build established: Scavenger-Mutant 11638 | -8/Mines | Build established: Scavenger-Skirmisher 11938 | -8/Mines | Build established: Scavenger-Mutant 11987 | -8/Mines | Discovered exit to Materials (range 3) 12053 | -8/Mines | Entered Materials 12053 | -8/Materials | Evolved 2 slots: Utility x2 12708 | -8/Materials | Garrison activated, responded to threat 13635 | -8/Materials | Discovered new exit (range 9) 13650 | -8/Materials | Identified exit to Factory 14051 | -8/Materials | Core integrity fell below 50% 14111 | -8/Materials | Lost 6 parts (1p3n2w) 14306 | -8/Materials | Build established: Mutant 14381 | -8/Materials | Discovered exit to Factory (range 6) 14502 | -8/Materials | Entered Factory 14502 | -7/Factory | Evolved 2 slots: Utility x2 14606 | -7/Factory | Sucked down chute 14606 | -7/Factory | Entered Waste 14635 | -7/Waste | Warlord forces began an assault 14693 | -7/Waste | Spotted C-40 Crusher 14693 | -7/Waste | Spotted C-40 Crusher 14695 | -7/Waste | Allies destroyed C-40 Crusher 14701 | -7/Waste | Allies destroyed C-40 Crusher 14706 | -7/Waste | Spotted C-40 Crusher 14711 | -7/Waste | Allies destroyed C-40 Crusher 14866 | -7/Waste | Spotted C-40 Crusher 14870 | -7/Waste | Allies destroyed C-40 Crusher 14980 | -7/Waste | Discovered new exit (range 16) 14994 | -7/Waste | Build established: Infiltrator-Skirmisher 15004 | -7/Waste | Identified exit to Factory 15011 | -7/Waste | Entered Factory 15011 | -7/Factory | Accompanied by 15 allies 15155 | -7/Factory | Identified exit to Garrison 15165 | -7/Factory | Entered Garrison 15165 | -7/Garrison | Accompanied by 15 allies 15197 | -7/Garrison | Learned Factory security intel 15212 | -7/Garrison | Triggered checkpoint 15235 | -7/Garrison | Garrison Relay disabled 15326 | -7/Garrison | Triggered checkpoint 15326 | -7/Garrison | Triggered checkpoint 15381 | -7/Garrison | Spotted B-75 Beast 15381 | -7/Garrison | Spotted B-75 Beast 15389 | -7/Garrison | Allies destroyed B-75 Beast 15398 | -7/Garrison | Allies destroyed B-75 Beast 15433 | -7/Garrison | Discovered new exit (range 7) 15439 | -7/Garrison | Identified exit to Factory 15447 | -7/Garrison | Heavy support dispatched to Factory 15542 | -7/Garrison | Triggered checkpoint 15573 | -7/Garrison | Garrison Relay disabled 15664 | -7/Garrison | Triggered checkpoint 15706 | -7/Garrison | Triggered checkpoint 15788 | -7/Garrison | Triggered checkpoint 15885 | -7/Garrison | Discovered exit to Factory (range 11) 15956 | -7/Garrison | Garrison Relay disabled 16123 | -7/Garrison | Discovered exit to Factory (range 14) 16210 | -7/Garrison | Garrison Relay disabled 16216 | -7/Garrison | Triggered checkpoint 16312 | -7/Garrison | Found Prototype Device 16313 | -7/Garrison | Identified Active Sensor Suite 16371 | -7/Garrison | H-XX Assembler disabled 16580 | -7/Garrison | Triggered checkpoint 16581 | -7/Garrison | Garrison Relay disabled 16586 | -7/Garrison | Build established: Mutant 16999 | -7/Garrison | Build established: Skirmisher 17022 | -7/Garrison | Installed Relay Interface Framework 17366 | -7/Garrison | Build established: Mutant 17447 | -7/Garrison | Entered Factory 17447 | -7/Factory | Accompanied by 9 allies 17823 | -7/Factory | Identified exit to Garrison 17823 | -7/Factory | Entered Garrison 17823 | -7/Garrison | Accompanied by 9 allies 17842 | -7/Garrison | Triggered checkpoint 17882 | -7/Garrison | Garrison Relay disabled 17928 | -7/Garrison | Triggered checkpoint 17984 | -7/Garrison | Expanded RIF knowledge: Zone Cloak 18188 | -7/Garrison | Triggered checkpoint 18218 | -7/Garrison | Triggered checkpoint 18237 | -7/Garrison | Build established: Scavenger-Mutant 18472 | -7/Garrison | Triggered checkpoint 18480 | -7/Garrison | Triggered checkpoint 18743 | -7/Garrison | Discovered new exit (range 12) 18759 | -7/Garrison | Rescued a captive Derelict 18759 | -7/Garrison | Rescued a captive Derelict 18834 | -7/Garrison | Garrison Relay disabled 18882 | -7/Garrison | Heavy support dispatched to Factory 19096 | -7/Garrison | Triggered checkpoint 19156 | -7/Garrison | Garrison Relay disabled 19169 | -7/Garrison | Discovered new exit (range 77) 19169 | -7/Garrison | Discovered new exit (range 43) 19169 | -7/Garrison | Discovered new exit (range 6) 19218 | -7/Garrison | Found embedded Infiltrators 19327 | -7/Garrison | Garrison Relay disabled 19689 | -7/Garrison | Build established: Mutant 19875 | -7/Garrison | Identified exit to Factory 19893 | -7/Garrison | Entered Factory 19893 | -6/Factory | Accompanied by 3 allies 19893 | -6/Factory | Evolved 2 slots: Propulsion x1, Weapon x1 19899 | -6/Factory | Identified exit to DSF 19899 | -6/Factory | Entered DSF 19899 | -6/DSF | Accompanied by 3 allies 19912 | -6/DSF | Additional patrols routed to DSF 20093 | -6/DSF | Discovered new exit (range 15) 20134 | -6/DSF | Identified exit to Factory 20168 | -6/DSF | Entered Factory 20168 | -5/Factory | Evolved 2 slots: Utility x2 20283 | -5/Factory | Build established: Skirmisher 21007 | -5/Factory | Discovered new exit (range 16) 21110 | -5/Factory | Identified exit to Upper Caves 21716 | -5/Factory | Build established: Hacker-Mutant 21956 | -5/Factory | Found Unknown Piercing Weapon 21957 | -5/Factory | Identified Enh. Force Lance 21960 | -5/Factory | Found Enh. Force Lance 22689 | -5/Factory | Cargo convoy interrupted 22774 | -5/Factory | Entered Upper Caves 23294 | -5/Upper Caves | Identified exit to Upper Caves 23507 | -5/Upper Caves | Entered another Upper Caves area 23638 | -5/Upper Caves | Spotted B-75 Beast 24065 | -5/Upper Caves | Attracted the attention of an 0b10 base 24134 | -5/Upper Caves | Learned location of 2 exits from Lower Caves 24134 | -5/Upper Caves | Learned location of 1 exit from Proximity Caves 24134 | -5/Upper Caves | Identified exit to Factory 24134 | -5/Upper Caves | Identified exit to Warlord 24404 | -5/Upper Caves | Entered Warlord 24719 | -5/Warlord | Discovered new exit (range 14) 24846 | -5/Warlord | RIF detected upon attempting to enter Warlord's base 24846 | -5/Warlord | Attacked by Warlord forces 24878 | -5/Warlord | Crushed by falling debris 24951 | -5/Warlord | Entered Proximity Caves 25282 | -4/Proximity Caves | Spotted B-86 Titan 25285 | -4/Proximity Caves | Allies destroyed B-86 Titan 25295 | -4/Proximity Caves | Learned Research interactive machine intel 26441 | -4/Proximity Caves | Entered a huge 0b10 base via the front door 26441 | -4/Proximity Caves | Spotted B-86 Titan 26453 | -4/Proximity Caves | Allies destroyed B-86 Titan 27235 | -4/Proximity Caves | Learned Research emergency access door positions 27578 | -4/Proximity Caves | Build established: Hacker-Tank 27694 | -4/Proximity Caves | Entered Factory 27694 | -4/Factory | Accompanied by 4 allies 27694 | -4/Factory | Evolved 2 slots: Utility x2 27989 | -4/Factory | Identified exit to Garrison 27989 | -4/Factory | Entered Garrison 27989 | -4/Garrison | Accompanied by 1 ally 28018 | -4/Garrison | Triggered checkpoint 28075 | -4/Garrison | Build established: Hacker-Mutant 28181 | -4/Garrison | Expanded RIF knowledge: Command Fork 28427 | -4/Garrison | Phase Generator disabled 28476 | -4/Garrison | Expanded RIF knowledge: Coupler Efficiency 28675 | -4/Garrison | Garrison Relay disabled 28999 | -4/Garrison | Build established: Bothacker-Mutant 29096 | -4/Garrison | Discovered new exit (range 14) 29120 | -4/Garrison | Learned Research security intel 29215 | -4/Garrison | Entered Research 29215 | -3/Research | Evolved 2 slots: Utility x2 29218 | -3/Research | Loaded intel: 43 interactive machine locations 29845 | -3/Research | Found Antimissile System 30047 | -3/Research | Build established: Hacker-Mutant 30381 | -3/Research | Identified exit to Garrison 30389 | -3/Research | Spotted B-86 Titan 30391 | -3/Research | Entered Garrison 30424 | -3/Garrison | Build established: Hacker-Tank 30477 | -3/Garrison | Expanded RIF knowledge: Alert ID Control 30593 | -3/Garrison | Heavy support dispatched to Research 30666 | -3/Garrison | Triggered checkpoint 30681 | -3/Garrison | Discovered new exit (range 63) 30681 | -3/Garrison | Discovered new exit (range 77) 30681 | -3/Garrison | Discovered new exit (range 32) 30728 | -3/Garrison | System corruption reached 10% 30811 | -3/Garrison | Lost 11 parts (1p2n7u1w) 30961 | -3/Garrison | Crushed by falling debris 30962 | -3/Garrison | System corruption reached 30% 30992 | -3/Garrison | Lost 3 parts (1n1u1w) 31004 | -3/Garrison | Garrison Relay disabled 31108 | -3/Garrison | H-XX Assembler disabled 31210 | -3/Garrison | Triggered checkpoint 31235 | -3/Garrison | Entered Research 31264 | -3/Research | Lost 3 parts (1n1u1w) 31315 | -3/Research | Build established: Bothacker-Mutant 31590 | -3/Research | Found Prototype Device 31590 | -3/Research | Identified Exp. Thermal Shield 32165 | -3/Research | Core integrity fell below 50% 32183 | -3/Research | Core integrity fell below 20% 32189 | -3/Research | Discovered new exit (range 14) 32195 | -3/Research | Entered another Research area 32195 | -2/Research | Evolved 2 slots: Propulsion x1, Weapon x1 32202 | -2/Research | Lost 16 parts (1p5n7u3w) 32291 | -2/Research | Identified exit to Garrison 32291 | -2/Research | Entered Garrison 32331 | -2/Garrison | Lost 3 parts (2n1u) 32334 | -2/Garrison | Triggered checkpoint 32338 | -2/Garrison | Triggered checkpoint 32345 | -2/Garrison | Discovered new exit (range 12) 32356 | -2/Garrison | Entered Access 32356 | -1/Access | Evolved 2 slots: Power x1, Propulsion x1 32382 | -1/Access | Lost 3 parts (1n2u) 32389 | -1/Access | Identified exit to Garrison 32472 | -1/Access | Build established: Mutant 32564 | -1/Access | Entered Garrison 32818 | -1/Garrison | Triggered checkpoint 32821 | -1/Garrison | Garrison Relay disabled 33036 | -1/Garrison | Spotted B-86 Titan 33084 | -1/Garrison | Rewired B-86 Titan 33089 | -1/Garrison | Rewired B-86 Titan 33125 | -1/Garrison | Destroyed B-86 Titan 33291 | -1/Garrison | Discovered new exit (range 10) 33322 | -1/Garrison | Triggered checkpoint 33349 | -1/Garrison | Entered Access 33444 | -1/Access | Spotted B-99 Colossus 33444 | -1/Access | Spotted B-99 Colossus 33549 | -1/Access | Build established: Scavenger-Sprinter 33599 | -1/Access | First assault squad dispatched 33786 | -1/Access | Discovered new exit (range 4) 33840 | *** | Escaped! Last Messages --------------- 33712_ Detecting nearby Garrison Access. 33740_ ALERT: Security rotation in progress. 33786_ Main Access Shell breached. 33786_ EXIT=FOUND 33822_ ALERT: Suspicious intruders detected, dispatching Specialist reinforcements to area. Sealed Barrier opened remotely. 33837_ Hpw. Tractor Beam destroyed. 33837_ Slug penetrates Reinforced Barrier. 33837_ Penetrated by Slug. 33837_ Slug penetrates Terminal. 33837_ Slug penetrates Reinforced Barrier. 33837_ Xenon Bombardment Thruster destroyed. 33837_ Penetrated by Slug. 33837_ Slug penetrates Terminal. 33838_ The Access Shell folds into the floor. 33840_ Penetrated by Slug. 33840_ Q-thruster destroyed. [Achievement: 30k Club] [Achievement: One Last FU] Map ----- +----------------------------------------------------+ | ?????????# #??????????????????????????? | | ?????????# #??????????????????????????? | | ?????????# #??????????????????????????? | | ?????????# """""" #??????????????????????????? | | ?????????# """""" #??????????????????????????? | | ?????????# """""" #??????????????????????????? | | ?????????# """""" #??????????????????????????? | | ?????????# """""" #??????????????????????????? | | ?????????# = #??????????????????????????? | | ?????????# ! ! #??###???????????? ?????? | | ?????????#######+#########"######### ????? | | ??????????# H ????? | | ??????????# ????? | | ??????????# ############################????????# | | ??????????# #???????????????????????????????????# | | ??????????# #???????????????????????????????????# | | ??????????# #???????????????????????????????????# | | ??????????# #???????????????????????????????????# | | ??????????# #?????##???###?###??????????????????# | | ??????????# ####### ####;###;#########??????????# | | ??????????# """T""" ??????????# | | ??????????# """ """% BB ?????????# | | ??????????# BB ?????????# | | ########### ?????# | | ## "" ## | | = ## @" / | | ## ## | | %## BB ###????# | | " ## BB ????? # | | ## ???? # | | ## ####### #;#;###;##########????? + | | ## #???## #### ###???????????? # | | """ """ ## #???# # #"############# # | | """S""" ## #???## ########### # # | | ## #???# ## # # # | | ## #???## # # # # | | #######+### ######## # !!! #? # | | # # !!! #? # | | C + # !! +? # | | +###+######+###### # # # ## | | # # # # # #? | | !# # # * # "### #? | | # """Y""" # ########### # ## #? | | #[ """"""" # ########### ##"# ## | | # # + ### # | | # + ########################?# | | ################+#######???????????????###?# # | | #?????????# #???????????????#"####+## | | #?????????# ]#???????????????## | | ###?????????# #????????????????# | +----------------------------------------------------+ Best States ------------- Heat Dissipation 59 Coolant Potential 100 Energy Generation 23 Energy Capacity 515 Matter Stores 500 Matter Capacity 550 Sight Range 16 Robot Scan Range 14 Terrain Scan Range 16 Terrain Scan Density 110 ECM Strength 1 Jamming Range 16 Additional Mass Support 12 EM Shielding 3 Armor Coverage 600 Resistance: KI 25 Resistance: TH 30 Utility Shielding 66 Point Defense Rating 160 Phase Shifting 15 Evasion (%) 77 Targeting Accuracy 20 Target Analysis 8 Core Analysis 6 Recoil Reduction 4 Offensive Hacking 50 Defensive Hacking 10 Relay Coupler Types 3 Relay Coupler Value 111 Authchip Count 4 Item Schematics ----------------- None Robot Schematics ------------------ None Fabricated ------------ Nothing Alien Tech Used ----------------- None Achievements -------------- 30k Club One Last FU Challenges ------------ None Game ------ Seed WeaponBackupPrototype Manual? 0 Play Time 05:26:24 Cumulative 96.8 hours Start 2023.03.21 @ 03:21:05 End 2023.03.24 @ 00:04:53 Sessions 2 Manual Loads 0 Difficulty Rogue Special Mode None Game No. 23 Rogue 23 Adventurer 0 Explorer 0 Win Type 0 Total 4 Types 4/0/0/0/0/0/0/0/0 Lore% 28 Gallery% 47 Achievement% 40 Wizard Run 0 Options --------- ASCII 0 Keyboard 0 Movement Mouse Keybinds 0 Fullscreen 2 Font 16/SmallcapsGlow Map View 75x55 Tactical HUD 1 Map Filters NONE Filters NONE Steam 1 RUN: 6a9661e2-e0dd-4e46-9d75-c05084af05a9